fUST/lending_fUST_20251113
["ID","MTS","AMOUNT","RATE_DAILY","PERIOD"]
[393862538,1763045527911,-567.12,0.00045753,120]
[393862539,1763045527921,-779.28,0.00045753,120]
[393862540,1763045527931,-500.0,0.00045753,120]
[393862541,1763045527940,-500.0,0.00045753,120]
[393862542,1763045527949,-500.0,0.00045753,120]
[393862543,1763045527958,-500.0,0.00045753,120]
[393862544,1763045527969,-850.14,0.00045753,120]
[393862545,1763045527979,-793.5,0.00045753,120]
[393862546,1763045527989,-500.0,0.00045753,120]
[393862547,1763045527999,-566.87,0.00045753,120]
[393862548,1763045528009,-500.0,0.00045753,120]
[393862549,1763045528019,-500.0,0.00045753,120]
[393862550,1763045528029,-500.0,0.00045753,120]
[393862551,1763045528040,-500.0,0.00045753,21]
[393862552,1763045528050,-631.85,0.00045753,120]
[393862553,1763045528060,-782.59,0.00045753,120]
[393862554,1763045528071,-826.01,0.00045753,120]
[393862555,1763045528086,-555.43,0.00045753,120]
[393862556,1763045528097,-500.0,0.00045753,120]
[393862557,1763045528112,-721.96,0.00045753,120]
[393862558,1763045528122,-199.32572959,0.00045753,120]
[393862559,1763045528132,-477.17721494,0.00045753,120]
[393862560,1763045528142,-500.0,0.00045753,120]
[393862561,1763045528152,-500.0,0.00045753,120]
[393862562,1763045528162,-500.0,0.00045753,120]
[393862563,1763045528173,-500.0,0.00045753,120]
[393862564,1763045528183,-500.0,0.00045753,120]
[393862565,1763045528192,-500.0,0.00045753,120]
[393862566,1763045528202,-500.0,0.00045753,120]
[393862567,1763045528213,-500.0,0.00045753,120]
[393862568,1763045528223,-500.0,0.00045753,120]
[393862569,1763045528233,-500.0,0.00045753,120]
[393862570,1763045528244,-913.41,0.00045753,120]
[393862571,1763045528256,-579.47,0.00045753,120]
[393862572,1763045528266,-500.0,0.00045753,120]
[393862573,1763045528277,-500.0,0.00045753,120]
[393862574,1763045528289,-500.0,0.00045753,120]
[393862575,1763045528302,-500.0,0.00045753,120]
[393862576,1763045528312,-500.0,0.00045753,120]
[393862577,1763045528323,-684.28,0.00045753,120]
[393862578,1763045528332,-500.0,0.00045753,120]
[393862579,1763045528343,-188.4779503,0.00045753,120]
[393862580,1763045528358,-500.0,0.00045753,120]
[393862581,1763045528371,-624.24,0.00045753,2]
[393862582,1763045528381,-1000.0,0.00045753,7]
[393862583,1763045528392,-500.0,0.00045753,120]
[393862584,1763045528402,-770.91,0.00045753,120]
[393862585,1763045528413,-3457.67,0.00045753,120]
[393862586,1763045528423,-500.0,0.00045753,120]
[393862587,1763045528433,-500.0,0.00045753,120]
[393862588,1763045528442,-1457.38,0.00045753,120]
[393862589,1763045528454,-715.274392,0.00045753,120]
[393862590,1763045528465,-797.92,0.00045753,120]
[393862591,1763045528475,-371.98983744,0.00045753,120]
[393862592,1763045528485,-715.274392,0.00045753,120]
[393862593,1763045528496,-500.0,0.00045753,120]
[393862594,1763045528506,-715.274392,0.00045753,120]
[393862595,1763045528517,-715.274392,0.00045753,120]
[393862596,1763045528713,-630.0,0.00045753,120]
[393862597,1763045528724,-500.0,0.00045753,120]
[393862598,1763045528735,-500.0,0.00045753,120]
[393862599,1763045528747,-500.0,0.00045753,120]
[393862600,1763045528757,-500.0,0.00045753,120]
[393862601,1763045528768,-500.0,0.00045753,120]
[393862602,1763045528779,-500.0,0.00045753,120]
[393862603,1763045528789,-500.0,0.00045753,120]
[393862604,1763045528800,-1748.23,0.00045753,120]
[393862605,1763045528811,-500.0,0.00045753,120]
[393862606,1763045528822,-500.0,0.00045753,120]
[393862607,1763045528833,-871.35,0.00045753,120]
[393862608,1763045528843,-854.46,0.00045753,120]
[393862609,1763045528859,-591.42,0.00045753,120]
[393862610,1763045528870,-614.87,0.00045753,120]
[393862611,1763045528881,-500.0,0.00045753,120]
[393862612,1763045528892,-500.0,0.00045753,120]
[393862613,1763045528902,-500.0,0.00045753,120]
[393862614,1763045528913,-500.0,0.00045753,120]
[393862615,1763045528923,-817.21,0.00045753,120]
[393862616,1763045528934,-500.0,0.00045753,120]
[393862617,1763045528944,-500.0,0.00045753,120]
[393862618,1763045528954,-500.0,0.00045753,120]
[393862619,1763045528964,-699.0,0.00045753,120]
[393862620,1763045528974,-500.0,0.00045753,120]
[393862621,1763045528984,-585.98,0.00045753,120]
[393862622,1763045528993,-500.0,0.00045753,120]
[393862623,1763045529004,-518.75298684,0.00045816,7]
[393862624,1763045529014,-151.0,0.000459,7]
[393862625,1763045529025,-70001.00000006,0.000459,120]
[393862626,1763045529035,-500.0,0.00045904,60]
[393862627,1763045529045,-1867574.13453535,0.00046,10]
[393862628,1763045529056,-1000.0,0.00046,120]
[393862629,1763045529066,-250.0,0.00046021,10]
[393862630,1763045529077,-571.44,0.00046027,120]
[393862631,1763045529087,-500.0,0.00046027,120]
[393862632,1763045529098,-500.0,0.00046027,120]
[393862633,1763045529114,-544.73,0.00046027,120]
[393862634,1763045529125,-500.0,0.00046027,120]
[393862635,1763045529136,-500.0,0.00046027,120]
[393862636,1763045529146,-197.52935213,0.00046027,120]
[393862637,1763045529156,-500.0,0.00046027,120]
[393862638,1763045529168,-1000.0,0.00046027,2]
[393862639,1763045529178,-608.84,0.00046027,120]
[393862640,1763045529188,-500.0,0.00046027,120]
[393862641,1763045529199,-500.0,0.00046027,120]
[393862642,1763045529209,-565.99,0.00046027,120]
[393862643,1763045529219,-500.0,0.00046027,120]
[393862644,1763045529230,-464.09387119,0.00046027,120]
[393862645,1763045529240,-500.0,0.00046027,120]
[393862646,1763045529252,-500.0,0.00046027,120]
[393862647,1763045529262,-500.0,0.00046027,120]
[393862648,1763045529272,-500.0,0.00046027,120]
[393862649,1763045529284,-200.0,0.00046027,120]
[393862650,1763045529295,-567.77305728,0.00046027,120]
[393862651,1763045529306,-1000.0,0.00046027,120]
[393862652,1763045529316,-500.0,0.00046027,120]
[393862653,1763045529326,-618.32560772,0.00046027,120]
[393862654,1763045529336,-732.35,0.00046027,120]
[393862655,1763045529347,-500.0,0.00046027,120]
[393862656,1763045529364,-500.0,0.00046027,120]
[393862657,1763045529374,-500.0,0.00046027,120]
[393862658,1763045529384,-500.0,0.00046027,120]
[393862659,1763045529394,-570.02,0.00046027,120]
[393862660,1763045529404,-502.75,0.00046027,120]
[393862661,1763045529414,-500.0,0.00046027,120]
[393862662,1763045529424,-500.0,0.00046027,120]
[393862663,1763045529435,-500.0,0.00046027,120]
[393862664,1763045529445,-585.51,0.00046027,120]
[393862665,1763045529455,-500.0,0.00046027,120]
[393862666,1763045529465,-500.0,0.00046027,120]
[393862667,1763045529475,-500.0,0.00046027,120]
[393862668,1763045529485,-1000.0,0.00046027,2]
[393862669,1763045529495,-500.0,0.00046027,120]
[393862670,1763045529505,-386.17822818,0.00046027,120]
[393862671,1763045529515,-500.0,0.00046027,120]
[393862672,1763045529525,-632.84534615,0.00046027,120]
[393862673,1763045529536,-500.0,0.00046027,120]
[393862674,1763045529546,-514.82,0.00046027,120]
[393862675,1763045529556,-500.0,0.00046027,120]
[393862676,1763045529566,-500.0,0.00046027,120]
[393862677,1763045529576,-385.2143332,0.00046027,120]
[393862678,1763045529587,-500.0,0.00046027,120]
[393862679,1763045529597,-498.87042179,0.00046027,120]
[393862680,1763045529612,-577.09,0.00046027,120]
[393862681,1763045529622,-834.01,0.00046027,120]
[393862682,1763045529632,-501.84431911,0.00046027,120]
[393862683,1763045529642,-969.65,0.00046027,120]
[393862684,1763045529653,-1066.87,0.00046027,7]
[393862685,1763045529662,-1264.73,0.00046027,30]
[393862686,1763045529673,-500.0,0.00046027,120]
[393862687,1763045529683,-787.85,0.00046027,120]
[393862688,1763045529693,-552.73,0.00046027,120]
[393862689,1763045529703,-2599.22,0.00046027,2]
[393862690,1763045529716,-500.0,0.00046027,120]
[393862691,1763045529726,-500.0,0.00046027,120]
[393862692,1763045529737,-736.82,0.00046027,120]
[393862693,1763045529747,-500.0,0.00046027,120]
[393862694,1763045529757,-500.0,0.00046027,120]
[393862695,1763045529767,-500.0,0.00046027,120]
[393862696,1763045529778,-534.45,0.00046027,120]
[393862697,1763045529789,-442.48895196,0.00046027,120]
[393862698,1763045529799,-500.0,0.00046027,120]
[393862699,1763045529809,-500.0,0.00046027,120]
[393862700,1763045529818,-500.0,0.00046027,120]
[393862701,1763045529829,-397.96481138,0.00046027,120]
[393862702,1763045529839,-500.0,0.00046027,120]
[393862703,1763045529850,-539.92,0.00046027,120]
[393862704,1763045529866,-500.0,0.00046027,120]
[393862705,1763045529876,-500.0,0.00046027,2]
[393862706,1763045529886,-500.0,0.00046027,120]
[393862707,1763045529897,-500.0,0.00046027,120]
[393862708,1763045529907,-500.0,0.00046027,120]
[393862709,1763045529917,-500.0,0.00046027,120]
[393862710,1763045529927,-558.63,0.00046027,120]
[393862711,1763045529936,-257.275672,0.00046027,120]
[393862712,1763045529946,-257.275672,0.00046027,120]
[393862713,1763045529956,-500.0,0.00046027,120]
[393862714,1763045529965,-257.275672,0.00046027,120]
[393862715,1763045529975,-500.0,0.00046027,120]
[393862716,1763045529984,-257.275672,0.00046027,120]
[393862717,1763045529994,-500.0,0.00046027,120]
[393862718,1763045530004,-500.0,0.00046027,120]
[393862719,1763045530013,-500.0,0.00046027,120]
[393862720,1763045530023,-500.0,0.00046027,120]
[393862721,1763045530033,-500.0,0.00046027,120]
[393862722,1763045530043,-500.0,0.00046027,120]
[393862723,1763045530052,-633.9,0.00046027,120]
[393862724,1763045530062,-500.0,0.00046027,120]
[393862725,1763045530071,-519.29,0.00046027,2]
[393862726,1763045530081,-500.0,0.00046027,120]
[393862727,1763045530092,-500.0,0.00046027,120]
[393862728,1763045530101,-500.0,0.00046027,120]
[393862729,1763045530115,-780.21,0.00046027,120]
[393862730,1763045530126,-11245.95,0.00046027,3]
[393862731,1763045530135,-500.0,0.00046027,120]
[393862732,1763045530145,-640.4,0.00046027,120]
[393862733,1763045530155,-500.0,0.00046027,120]
[393862734,1763045530164,-500.0,0.00046027,120]
[393862735,1763045530175,-500.0,0.00046027,120]
[393862736,1763045530185,-500.0,0.00046027,120]
[393862737,1763045530195,-500.0,0.00046027,120]
[393862738,1763045530205,-500.0,0.00046027,120]
[393862739,1763045530216,-500.0,0.00046027,120]
[393862740,1763045530226,-500.0,0.00046027,120]
[393862741,1763045530236,-685.45,0.00046027,120]
[393862742,1763045530247,-500.0,0.00046027,120]
[393862743,1763045530259,-500.0,0.00046027,120]
[393862744,1763045530270,-500.0,0.00046027,120]
[393862745,1763045530291,-500.0,0.00046027,120]
[393862746,1763045530307,-500.0,0.00046027,120]
[393862747,1763045530317,-499.50862136,0.00046027,120]
[393862748,1763045530328,-500.0,0.00046027,120]
[393862749,1763045530339,-500.0,0.00046027,30]
[393862750,1763045530349,-500.0,0.00046027,120]
[393862751,1763045530365,-598.06,0.00046027,120]
[393862752,1763045530376,-567.12,0.00046027,120]
[393862753,1763045530387,-779.28,0.00046027,120]
[393862754,1763045530398,-500.0,0.00046027,120]
[393862755,1763045530409,-500.0,0.00046027,120]
[393862756,1763045530420,-500.0,0.00046027,120]
[393862757,1763045530431,-500.0,0.00046027,120]
[393862758,1763045530442,-850.14,0.00046027,120]
[393862759,1763045530453,-793.5,0.00046027,120]
[393862760,1763045530464,-500.0,0.00046027,120]
[393862761,1763045530475,-566.87,0.00046027,120]
[393862762,1763045530486,-500.0,0.00046027,120]
[393862763,1763045530497,-566.97,0.00046027,120]
[393862764,1763045530507,-500.0,0.00046027,120]
[393862765,1763045530518,-500.0,0.00046027,21]
[393862766,1763045530528,-631.85,0.00046027,120]
[393862767,1763045530541,-782.59,0.00046027,120]
[393862768,1763045530552,-826.01,0.00046027,120]
[393862769,1763045530562,-555.43,0.00046027,120]
[393862770,1763045530573,-500.0,0.00046027,120]
[393862771,1763045530583,-721.96,0.00046027,120]
[393862772,1763045530593,-500.0,0.00046027,120]
[393862773,1763045530608,-500.0,0.00046027,120]
[393862774,1763045530619,-500.0,0.00046027,120]
[393862775,1763045530630,-500.0,0.00046027,120]
[393862776,1763045530641,-500.0,0.00046027,120]
[393862777,1763045530652,-500.0,0.00046027,120]
[393862778,1763045530664,-500.0,0.00046027,120]
[393862779,1763045530675,-500.0,0.00046027,120]
[393862780,1763045530686,-500.0,0.00046027,120]
[393862781,1763045530698,-500.0,0.00046027,120]
[393862782,1763045530709,-913.41,0.00046027,120]
[393862783,1763045530720,-579.47,0.00046027,120]
[393862784,1763045530732,-500.0,0.00046027,120]
[393862785,1763045530743,-500.0,0.00046027,120]
[393862786,1763045530754,-500.0,0.00046027,120]
[393862787,1763045530765,-500.0,0.00046027,120]
[393862788,1763045530776,-500.0,0.00046027,120]
[393862789,1763045530787,-684.28,0.00046027,120]
[393862790,1763045530800,-500.0,0.00046027,120]
[393862791,1763045530811,-500.0,0.00046027,120]
[393862792,1763045530824,-624.24,0.00046027,2]
[393862793,1763045530835,-1000.0,0.00046027,7]
[393862794,1763045530846,-500.0,0.00046027,120]
[393862795,1763045530862,-770.91,0.00046027,120]
[393862796,1763045530873,-3457.67,0.00046027,120]
[393862797,1763045530884,-500.0,0.00046027,120]
[393862798,1763045530895,-500.0,0.00046027,120]
[393862799,1763045530906,-1457.38,0.00046027,120]
[393862800,1763045530918,-797.92,0.00046027,120]
[393862801,1763045530931,-500.0,0.00046027,120]
[393862802,1763045530943,-630.0,0.00046027,120]
[393862803,1763045530954,-500.0,0.00046027,120]
[393862804,1763045530965,-500.0,0.00046027,120]
[393862805,1763045530977,-500.0,0.00046027,120]
[393862806,1763045530989,-500.0,0.00046027,120]
[393862807,1763045531000,-500.0,0.00046027,120]
[393862808,1763045531012,-276.6983946,0.00046027,120]
[393862809,1763045531023,-500.0,0.00046027,120]
[393862810,1763045531034,-1748.23,0.00046027,120]
[393862811,1763045531044,-254.50607736,0.00046027,120]
[393862812,1763045531055,-500.0,0.00046027,120]
[393862813,1763045531066,-871.35,0.00046027,120]
[393862814,1763045531076,-854.46,0.00046027,120]
[393862815,1763045531088,-591.42,0.00046027,120]
[393862816,1763045531097,-614.87,0.00046027,120]
[393862817,1763045531115,-500.0,0.00046027,120]
[393862818,1763045531126,-500.0,0.00046027,120]
[393862819,1763045531136,-500.0,0.00046027,120]
[393862820,1763045531146,-500.0,0.00046027,120]
[393862821,1763045531156,-817.21,0.00046027,120]
[393862822,1763045531166,-376.53497356,0.00046027,120]
[393862823,1763045531177,-500.0,0.00046027,120]
[393862824,1763045531188,-500.0,0.00046027,120]
[393862825,1763045531199,-699.0,0.00046027,120]
[393862826,1763045531210,-500.0,0.00046027,120]
[393862827,1763045531221,-585.98,0.00046027,120]
[393862828,1763045531231,-500.0,0.00046027,120]
[393862829,1763045531242,-1112.98136645,0.0004606,2]
[393862830,1763045531260,-2500.0,0.00046064,10]
[393862831,1763045531271,-400.28388004,0.000461,10]
[393862832,1763045531281,-177.669168,0.00046143,2]
[393862833,1763045531292,-4000.0,0.000462,120]
[393862834,1763045531303,-1616.53,0.000462,14]
[393862835,1763045531314,-571.44,0.00046301,120]
[393862836,1763045531324,-500.0,0.00046301,120]
[393862837,1763045531338,-500.0,0.00046301,120]
[393862838,1763045531349,-544.73,0.00046301,120]
[393862839,1763045531363,-187.16335564,0.00046301,120]
[393862840,1763045531530,-542.20264896,0.00046301,120]
[393862841,1763045531541,-500.0,0.00046301,120]
[393862842,1763045531552,-1000.0,0.00046301,2]
[393862843,1763045531562,-608.84,0.00046301,120]
[393862844,1763045531573,-500.0,0.00046301,120]
[393862845,1763045531583,-500.0,0.00046301,120]
[393862846,1763045531593,-565.99,0.00046301,120]
[393862847,1763045531609,-500.0,0.00046301,120]
[393862848,1763045531620,-500.0,0.00046301,120]
[393862849,1763045531630,-500.0,0.00046301,120]
[393862850,1763045531641,-500.0,0.00046301,120]
[393862851,1763045531652,-500.0,0.00046301,120]
[393862852,1763045531662,-200.0,0.00046301,120]
[393862853,1763045531673,-787.09768185,0.00046301,120]
[393862854,1763045531683,-500.0,0.00046301,120]
[393862855,1763045531693,-732.35,0.00046301,120]
[393862856,1763045531704,-500.0,0.00046301,120]
[393862857,1763045531715,-500.0,0.00046301,120]
[393862858,1763045531726,-500.0,0.00046301,120]
[393862859,1763045531736,-500.0,0.00046301,120]
[393862860,1763045531747,-570.02,0.00046301,120]
[393862861,1763045531758,-502.75,0.00046301,120]
[393862862,1763045531769,-500.0,0.00046301,120]
[393862863,1763045531780,-500.0,0.00046301,120]
[393862864,1763045531791,-500.0,0.00046301,120]
[393862865,1763045531802,-585.51,0.00046301,120]
[393862866,1763045531813,-500.0,0.00046301,120]
[393862867,1763045531824,-500.0,0.00046301,120]
[393862868,1763045531834,-500.0,0.00046301,120]
[393862869,1763045531845,-1000.0,0.00046301,2]
[393862870,1763045531862,-500.0,0.00046301,120]
[393862871,1763045531873,-500.0,0.00046301,120]
[393862872,1763045531884,-253.62368615,0.00046301,120]
[393862873,1763045531894,-514.82,0.00046301,120]
[393862874,1763045531905,-500.0,0.00046301,120]
[393862875,1763045531916,-500.0,0.00046301,120]
[393862876,1763045531927,-500.0,0.00046301,120]
[393862877,1763045531936,-577.09,0.00046301,120]
[393862878,1763045531946,-834.01,0.00046301,120]
[393862879,1763045531955,-969.65,0.00046301,120]
[393862880,1763045531966,-1066.87,0.00046301,7]
[393862881,1763045531976,-1264.73,0.00046301,30]
[393862882,1763045531986,-500.0,0.00046301,120]
[393862883,1763045531996,-787.85,0.00046301,120]
[393862884,1763045532007,-552.73,0.00046301,120]
[393862885,1763045532017,-2599.22,0.00046301,2]
[393862886,1763045532028,-500.0,0.00046301,120]
[393862887,1763045532038,-500.0,0.00046301,120]
[393862888,1763045532049,-736.82,0.00046301,120]
[393862889,1763045532059,-500.0,0.00046301,120]
[393862890,1763045532069,-500.0,0.00046301,120]
[393862891,1763045532080,-502.48551291,0.00046301,120]
[393862892,1763045532091,-534.45,0.00046301,120]
[393862893,1763045532101,-500.0,0.00046301,120]
[393862894,1763045532116,-500.0,0.00046301,120]
[393862895,1763045532127,-500.0,0.00046301,120]
[393862896,1763045532137,-500.0,0.00046301,120]
[393862897,1763045532147,-539.92,0.00046301,120]
[393862898,1763045532158,-500.0,0.00046301,120]
[393862899,1763045532168,-500.0,0.00046301,2]
[393862900,1763045532179,-500.0,0.00046301,120]
[393862901,1763045532189,-500.0,0.00046301,120]
[393862902,1763045532199,-500.0,0.00046301,120]
[393862903,1763045532208,-500.0,0.00046301,120]
[393862904,1763045532217,-558.63,0.00046301,120]
[393862905,1763045532227,-500.0,0.00046301,120]
[393862906,1763045532238,-500.0,0.00046301,120]
[393862907,1763045532249,-500.0,0.00046301,120]
[393862908,1763045532259,-515.04233967,0.00046301,120]
[393862909,1763045532269,-500.0,0.00046301,120]
[393862910,1763045532279,-500.0,0.00046301,120]
[393862911,1763045532293,-500.0,0.00046301,120]
[393862912,1763045532303,-203.38544832,0.00046301,120]
[393862913,1763045532312,-633.9,0.00046301,120]
[393862914,1763045532322,-500.0,0.00046301,120]
[393862915,1763045532332,-519.29,0.00046301,2]
[393862916,1763045532342,-500.0,0.00046301,120]
[393862917,1763045532351,-500.0,0.00046301,120]
[393862918,1763045532368,-500.0,0.00046301,120]
[393862919,1763045532378,-780.21,0.00046301,120]
[393862920,1763045532388,-11245.95,0.00046301,3]
[393862921,1763045532398,-500.0,0.00046301,120]
[393862922,1763045532407,-640.4,0.00046301,120]
[393862923,1763045532416,-500.0,0.00046301,120]
[393862924,1763045532428,-500.0,0.00046301,120]
[393862925,1763045532438,-500.0,0.00046301,120]
[393862926,1763045532448,-500.0,0.00046301,120]
[393862927,1763045532458,-500.0,0.00046301,120]
[393862928,1763045532468,-500.0,0.00046301,120]
[393862929,1763045532478,-500.0,0.00046301,120]
[393862930,1763045532488,-500.0,0.00046301,120]
[393862931,1763045532497,-685.45,0.00046301,120]
[393862932,1763045532507,-500.0,0.00046301,120]
[393862933,1763045532517,-500.0,0.00046301,120]
[393862934,1763045532527,-500.0,0.00046301,120]
[393862935,1763045532537,-151.0,0.00046301,7]
[393862936,1763045532546,-500.0,0.00046301,120]
[393862937,1763045532556,-500.0,0.00046301,120]
[393862938,1763045532567,-187.10970323,0.00046301,120]
[393862939,1763045532576,-500.0,0.00046301,30]
[393862940,1763045532586,-500.0,0.00046301,120]
[393862941,1763045532596,-598.06,0.00046301,120]
[393862942,1763045532609,-567.12,0.00046301,120]
[393862943,1763045532620,-779.28,0.00046301,120]
[393862944,1763045532630,-500.0,0.00046301,120]
[393862945,1763045532639,-500.0,0.00046301,120]
[393862946,1763045532649,-500.0,0.00046301,120]
[393862947,1763045532659,-500.0,0.00046301,120]
[393862948,1763045532669,-850.14,0.00046301,120]
[393862949,1763045532679,-793.5,0.00046301,120]
[393862950,1763045532689,-500.0,0.00046301,120]
[393862951,1763045532699,-566.87,0.00046301,120]
[393862952,1763045532708,-500.0,0.00046301,120]
[393862953,1763045532718,-500.0,0.00046301,120]
[393862954,1763045532727,-500.0,0.00046301,21]
[393862955,1763045532736,-631.85,0.00046301,120]
[393862956,1763045532746,-782.59,0.00046301,120]
[393862957,1763045532755,-826.01,0.00046301,120]
[393862958,1763045532765,-555.43,0.00046301,120]
[393862959,1763045532775,-500.0,0.00046301,120]
[393862960,1763045532785,-721.96,0.00046301,120]
[393862961,1763045532795,-500.0,0.00046301,120]
[393862962,1763045532805,-500.0,0.00046301,120]
[393862963,1763045532815,-500.0,0.00046301,120]
[393862964,1763045532825,-644.58221758,0.00046301,120]
[393862965,1763045532835,-500.0,0.00046301,120]
[393862966,1763045532844,-500.0,0.00046301,120]
[393862967,1763045532858,-500.0,0.00046301,120]
[393862968,1763045532868,-500.0,0.00046301,120]
[393862969,1763045532878,-500.0,0.00046301,120]
[393862970,1763045532888,-500.0,0.00046301,120]
[393862971,1763045532898,-913.41,0.00046301,120]
[393862972,1763045532907,-579.47,0.00046301,120]
[393862973,1763045532917,-500.0,0.00046301,120]
[393862974,1763045532927,-500.0,0.00046301,120]
[393862975,1763045532936,-500.0,0.00046301,120]
[393862976,1763045532946,-558.47382225,0.00046301,120]
[393862977,1763045532956,-500.0,0.00046301,120]
[393862978,1763045532965,-684.28,0.00046301,120]
[393862979,1763045532975,-500.0,0.00046301,120]
[393862980,1763045532986,-500.0,0.00046301,120]
[393862981,1763045532995,-624.24,0.00046301,2]
[393862982,1763045533004,-1000.0,0.00046301,7]
[393862983,1763045533014,-500.0,0.00046301,120]
[393862984,1763045533023,-770.91,0.00046301,120]
[393862985,1763045533034,-3457.67,0.00046301,120]
[393862986,1763045533044,-500.0,0.00046301,120]
[393862987,1763045533054,-500.0,0.00046301,120]
[393862988,1763045533064,-1457.38,0.00046301,120]
[393862989,1763045533073,-715.274392,0.00046301,120]
[393862990,1763045533083,-797.92,0.00046301,120]
[393862991,1763045533092,-715.274392,0.00046301,120]
[393862992,1763045533102,-480.53558151,0.00046301,120]
[393862993,1763045533120,-715.274392,0.00046301,120]
[393862994,1763045533130,-715.27439729,0.00046301,120]
[393862995,1763045533141,-630.0,0.00046301,120]
[393862996,1763045533151,-500.0,0.00046301,120]
[393862997,1763045533160,-500.0,0.00046301,120]
[393862998,1763045533170,-500.0,0.00046301,120]
[393862999,1763045533180,-500.0,0.00046301,120]
[393863000,1763045533189,-500.0,0.00046301,120]
[393863001,1763045533198,-500.0,0.00046301,120]
[393863002,1763045533208,-1748.23,0.00046301,120]
[393863003,1763045533217,-171.8417227,0.00046301,120]
[393863004,1763045533227,-871.35,0.00046301,120]
[393863005,1763045533236,-854.46,0.00046301,120]
[393863006,1763045533247,-591.42,0.00046301,120]
[393863007,1763045533263,-614.87,0.00046301,120]
[393863008,1763045533273,-500.0,0.00046301,120]
[393863009,1763045533283,-500.0,0.00046301,120]
[393863010,1763045533294,-500.0,0.00046301,120]
[393863011,1763045533303,-500.0,0.00046301,120]
[393863012,1763045533312,-817.21,0.00046301,120]
[393863013,1763045533322,-500.0,0.00046301,120]
[393863014,1763045533333,-500.0,0.00046301,120]
[393863015,1763045533343,-699.0,0.00046301,120]
[393863016,1763045533352,-500.0,0.00046301,120]
[393863017,1763045533367,-585.98,0.00046301,120]
[393863018,1763045533377,-500.0,0.00046301,120]
[393863019,1763045533386,-500.0,0.00046452,60]
[393863020,1763045533397,-271.05,0.000465,30]
[393863021,1763045533407,-585.43,0.000465,14]
[393863022,1763045533417,-350.0,0.00046568,10]
[393863023,1763045533427,-531.51677166,0.00046568,10]
[393863024,1763045533437,-571.44,0.00046575,120]
[393863025,1763045533447,-500.0,0.00046575,120]
[393863026,1763045533456,-500.0,0.00046575,120]
[393863027,1763045533465,-544.73,0.00046575,120]
[393863028,1763045533475,-500.0,0.00046575,120]
[393863029,1763045533484,-1000.0,0.00046575,2]
[393863030,1763045533494,-608.84,0.00046575,120]
[393863031,1763045533505,-500.0,0.00046575,120]
[393863032,1763045533515,-500.0,0.00046575,120]
[393863033,1763045533525,-565.99,0.00046575,120]
[393863034,1763045533534,-500.0,0.00046575,120]
[393863035,1763045533544,-500.0,0.00046575,120]
[393863036,1763045533554,-500.0,0.00046575,120]
[393863037,1763045533564,-500.0,0.00046575,120]